[Event "Titled Tuesday Blitz January 31 Early 2023"]
[White "Womacka, Mathias"]
[Black "Ashraf, Artin"]
[WhiteFideId "4611390"]
[BlackFideId "22514805"]
[WhiteElo "2396"]
[BlackElo "2314"]
[Result "1-0"]
[Round "08"]
[TimeControl "180+2"]
[Date "2023.01.31"]
[WhiteClock "0:00:53"]
[BlackClock "0:00:18"]

1. e4 {[%clk 0:03:00]}  c5 {[%clk 0:02:58]} 2. Nf3 {[%clk 0:03:00]}  d6 {[%clk 0:02:58]} 3. d4 {[%clk 0:03:00]}  cxd4 {[%clk 0:02:59]} 4. Nxd4 {[%clk 0:03:01]}  Nf6 {[%clk 0:03:00]} 5. Nc3 {[%clk 0:03:01]}  a6 {[%clk 0:03:00]} 6. Be2 {[%clk 0:03:01]}  e5 {[%clk 0:02:59]} 7. Nb3 {[%clk 0:02:59]}  Be7 {[%clk 0:03:00]} 8. O-O {[%clk 0:02:58]}  O-O {[%clk 0:03:00]} 9. Kh1 {[%clk 0:02:58]}  Be6 {[%clk 0:02:55]} 10. f4 {[%clk 0:02:57]}  exf4 {[%clk 0:02:55]} 11. Bxf4 {[%clk 0:02:58]}  Nc6 {[%clk 0:02:42]} 12. Qe1 {[%clk 0:02:57]}  Ne8 {[%clk 0:02:39]} 13. Rd1 {[%clk 0:02:37]}  Bh4 {[%clk 0:02:38]} 14. Qd2 {[%clk 0:02:02]}  Bf6 {[%clk 0:02:37]} 15. Qe3 {[%clk 0:02:01]}  Be5 {[%clk 0:01:55]} 16. Bxe5 {[%clk 0:01:49]}  Nxe5 {[%clk 0:01:54]} 17. Nd4 {[%clk 0:01:49]}  Qe7 {[%clk 0:01:47]} 18. Nf5 {[%clk 0:01:35]}  Bxf5 {[%clk 0:01:38]} 19. Nd5 {[%clk 0:01:35]}  Qd8 {[%clk 0:01:33]} 20. exf5 {[%clk 0:01:22]}  Rc8 {[%clk 0:01:30]} 21. c3 {[%clk 0:01:18]}  Nf6 {[%clk 0:01:29]} 22. Bf3 {[%clk 0:01:17]}  Nc4 {[%clk 0:01:24]} 23. Qf2 {[%clk 0:01:08]}  Re8 {[%clk 0:01:23]} 24. Nxf6+ {[%clk 0:01:07]}  Qxf6 {[%clk 0:01:22]} 25. Bxb7 {[%clk 0:01:03]}  Rb8 {[%clk 0:01:22]} 26. Bxa6 {[%clk 0:01:03]}  Rxb2 {[%clk 0:00:35]} 27. Qg3 {[%clk 0:00:57]}  Ne5 {[%clk 0:00:22]} 28. a4 {[%clk 0:00:56]}  Rc8 {[%clk 0:00:18]} 29. Bxc8 {[%clk 0:00:53]} 1-0


[Site "https://www.chess.com"]

[Event "Titled Tuesday Blitz January 31 Early 2023"]
[White "Arabidze, Meri"]
[Black "Koepke, Christian"]
[WhiteFideId "13604040"]
[BlackFideId "4655737"]
[WhiteElo "2441"]
[BlackElo "2308"]
[Result "1-0"]
[Round "08"]
[TimeControl "180+2"]
[Date "2023.01.31"]
[WhiteClock "0:00:52"]
[BlackClock "0:00:21"]

1. Nf3 {[%clk 0:03:00]}  d5 {[%clk 0:02:59]} 2. c4 {[%clk 0:03:00]}  d4 {[%clk 0:02:58]} 3. g3 {[%clk 0:03:00]}  g6 {[%clk 0:02:56]} 4. Bg2 {[%clk 0:03:00]}  Bg7 {[%clk 0:02:57]} 5. O-O {[%clk 0:03:01]}  Nc6 {[%clk 0:02:57]} 6. d3 {[%clk 0:03:01]}  e6 {[%clk 0:02:57]} 7. Na3 {[%clk 0:02:57]}  Nge7 {[%clk 0:02:56]} 8. Nc2 {[%clk 0:02:57]}  a5 {[%clk 0:02:57]} 9. b3 {[%clk 0:02:57]}  O-O {[%clk 0:02:54]} 10. Rb1 {[%clk 0:02:58]}  Nb4 {[%clk 0:02:51]} 11. Rb2 {[%clk 0:02:56]}  Nec6 {[%clk 0:02:35]} 12. a3 {[%clk 0:02:56]}  Nxc2 {[%clk 0:02:32]} 13. Qxc2 {[%clk 0:02:57]}  Rb8 {[%clk 0:02:30]} 14. b4 {[%clk 0:02:56]}  axb4 {[%clk 0:02:25]} 15. axb4 {[%clk 0:02:56]}  Qe7 {[%clk 0:02:26]} 16. Bd2 {[%clk 0:02:50]}  Bd7 {[%clk 0:02:24]} 17. b5 {[%clk 0:02:50]}  Ne5 {[%clk 0:02:17]} 18. Bb4 {[%clk 0:02:47]}  Nxf3+ {[%clk 0:02:17]} 19. Bxf3 {[%clk 0:02:47]}  Qg5 {[%clk 0:02:12]} 20. Bxf8 {[%clk 0:02:47]}  Bxf8 {[%clk 0:02:12]} 21. Ra2 {[%clk 0:02:46]}  Bc5 {[%clk 0:02:10]} 22. Rfa1 {[%clk 0:02:44]}  h5 {[%clk 0:02:08]} 23. Ra8 {[%clk 0:02:43]}  Rxa8 {[%clk 0:02:09]} 24. Rxa8+ {[%clk 0:02:44]}  Kg7 {[%clk 0:02:09]} 25. Bxb7 {[%clk 0:02:42]}  h4 {[%clk 0:02:08]} 26. Bg2 {[%clk 0:02:18]}  e5 {[%clk 0:02:06]} 27. Ra1 {[%clk 0:01:58]}  h3 {[%clk 0:02:06]} 28. Bf3 {[%clk 0:01:58]}  Bg4 {[%clk 0:01:54]} 29. Bxg4 {[%clk 0:01:56]}  Qxg4 {[%clk 0:01:55]} 30. f3 {[%clk 0:01:54]}  Qe6 {[%clk 0:01:48]} 31. Ra6 {[%clk 0:01:51]}  Qf5 {[%clk 0:01:46]} 32. Rc6 {[%clk 0:01:45]}  Bb4 {[%clk 0:01:38]} 33. Qc1 {[%clk 0:01:31]}  g5 {[%clk 0:01:03]} 34. c5 {[%clk 0:01:23]}  f6 {[%clk 0:00:37]} 35. b6 {[%clk 0:01:16]}  cxb6 {[%clk 0:00:35]} 36. cxb6 {[%clk 0:01:15]}  g4 {[%clk 0:00:35]} 37. b7 {[%clk 0:00:58]}  gxf3 {[%clk 0:00:35]} 38. b8=Q {[%clk 0:00:54]}  fxe2 {[%clk 0:00:24]} 39. Rc7+ {[%clk 0:00:53]}  Kg6 {[%clk 0:00:20]} 40. Qg8+ {[%clk 0:00:53]}  Kh5 {[%clk 0:00:21]} 41. Rh7+ {[%clk 0:00:52]} 1-0


[Site "https://www.chess.com"]

[Event "Titled Tuesday Blitz January 31 Early 2023"]
[White "Gheorghiu, Calin"]
[Black "Klose, Eli"]
[WhiteFideId "1200305"]
[BlackFideId "16242955"]
[WhiteElo "2313"]
[BlackElo "1519"]
[Result "0-1"]
[Round "08"]
[TimeControl "180+2"]
[Date "2023.01.31"]
[WhiteClock "0:01:53"]
[BlackClock "0:02:41"]

1. e4 {[%clk 0:02:59]}  e6 {[%clk 0:02:59]} 2. d4 {[%clk 0:02:59]}  d5 {[%clk 0:02:59]} 3. Nc3 {[%clk 0:02:58]}  Bb4 {[%clk 0:02:59]} 4. e5 {[%clk 0:02:58]}  Ne7 {[%clk 0:02:59]} 5. a3 {[%clk 0:02:57]}  Bxc3+ {[%clk 0:03:00]} 6. bxc3 {[%clk 0:02:58]}  b6 {[%clk 0:03:01]} 7. h4 {[%clk 0:02:50]}  Ba6 {[%clk 0:02:58]} 8. h5 {[%clk 0:02:50]}  Bxf1 {[%clk 0:02:57]} 9. Kxf1 {[%clk 0:02:51]}  h6 {[%clk 0:02:58]} 10. a4 {[%clk 0:02:51]}  Nbc6 {[%clk 0:02:58]} 11. Ba3 {[%clk 0:02:50]}  Qd7 {[%clk 0:02:58]} 12. Qg4 {[%clk 0:02:48]}  Nf5 {[%clk 0:02:58]} 13. Ne2 {[%clk 0:02:48]}  O-O-O {[%clk 0:02:54]} 14. Rh3 {[%clk 0:02:42]}  Na5 {[%clk 0:02:53]} 15. Bb4 {[%clk 0:02:35]}  Nc4 {[%clk 0:02:53]} 16. a5 {[%clk 0:02:34]}  Kb7 {[%clk 0:02:52]} 17. Ng3 {[%clk 0:02:28]}  Nfe3+ {[%clk 0:02:50]} 18. fxe3 {[%clk 0:02:19]}  Nxe3+ {[%clk 0:02:51]} 19. Ke2 {[%clk 0:02:19]}  Nxg4 {[%clk 0:02:52]} 20. Rhh1 {[%clk 0:02:16]}  f5 {[%clk 0:02:50]} 21. Rhb1 {[%clk 0:02:14]}  f4 {[%clk 0:02:45]} 22. Nf1 {[%clk 0:02:13]}  Qf7 {[%clk 0:02:45]} 23. Nd2 {[%clk 0:02:10]}  Qxh5 {[%clk 0:02:44]} 24. Nf3 {[%clk 0:02:05]}  Ne3 {[%clk 0:02:43]} 25. Kf2 {[%clk 0:01:55]}  Qg4 {[%clk 0:02:42]} 26. Rg1 {[%clk 0:01:54]}  Qg3+ {[%clk 0:02:42]} 27. Ke2 {[%clk 0:01:54]}  Nxc2 {[%clk 0:02:41]} 28. Rab1 {[%clk 0:01:52]}  Nxb4 {[%clk 0:02:41]} 29. Rxb4 {[%clk 0:01:53]}  g5 {[%clk 0:02:41]} 0-1


[Site "https://www.chess.com"]

[Event "Titled Tuesday Blitz January 31 Early 2023"]
[White "Lauridsen, Jesper Morch"]
[Black "Toncheva, Nadya"]
[WhiteFideId "1401890"]
[BlackFideId "2924056"]
[WhiteElo "2309"]
[BlackElo "2295"]
[Result "0-1"]
[Round "08"]
[TimeControl "180+2"]
[Date "2023.01.31"]
[WhiteClock "0:00:50"]
[BlackClock "0:01:41"]

1. e4 {[%clk 0:03:00]}  c5 {[%clk 0:03:00]} 2. Nf3 {[%clk 0:02:59]}  Nc6 {[%clk 0:03:01]} 3. d4 {[%clk 0:02:59]}  cxd4 {[%clk 0:03:02]} 4. Nxd4 {[%clk 0:02:57]}  g6 {[%clk 0:03:02]} 5. c4 {[%clk 0:02:56]}  Bg7 {[%clk 0:03:02]} 6. Nc2 {[%clk 0:02:55]}  Nf6 {[%clk 0:03:02]} 7. Nc3 {[%clk 0:02:54]}  O-O {[%clk 0:03:02]} 8. Be2 {[%clk 0:02:54]}  d6 {[%clk 0:03:02]} 9. O-O {[%clk 0:02:54]}  Be6 {[%clk 0:03:03]} 10. Be3 {[%clk 0:02:51]}  Rc8 {[%clk 0:03:03]} 11. Qd2 {[%clk 0:02:48]}  a6 {[%clk 0:03:03]} 12. Rad1 {[%clk 0:02:45]}  Ng4 {[%clk 0:02:56]} 13. Bxg4 {[%clk 0:02:39]}  Bxg4 {[%clk 0:02:57]} 14. f3 {[%clk 0:02:33]}  Be6 {[%clk 0:02:58]} 15. Nd5 {[%clk 0:02:16]}  Bxd5 {[%clk 0:02:56]} 16. exd5 {[%clk 0:02:03]}  Ne5 {[%clk 0:02:41]} 17. b3 {[%clk 0:02:02]}  b5 {[%clk 0:02:41]} 18. cxb5 {[%clk 0:02:01]}  axb5 {[%clk 0:02:42]} 19. Nd4 {[%clk 0:01:57]}  Qd7 {[%clk 0:02:23]} 20. Bh6 {[%clk 0:01:47]}  Qa7 {[%clk 0:02:13]} 21. Bxg7 {[%clk 0:01:41]}  Kxg7 {[%clk 0:02:14]} 22. Qe3 {[%clk 0:01:35]}  Qxa2 {[%clk 0:01:56]} 23. f4 {[%clk 0:01:18]}  Ng4 {[%clk 0:01:51]} 24. Qxe7 {[%clk 0:01:15]}  Rfe8 {[%clk 0:01:44]} 25. Qxd6 {[%clk 0:01:01]}  Ne3 {[%clk 0:01:43]} 26. f5 {[%clk 0:00:50]}  Qxg2# {[%clk 0:01:41]} 0-1


[Site "https://www.chess.com"]

[Event "Titled Tuesday Blitz January 31 Early 2023"]
[White "Ramirez Allo, Eduardo"]
[Black "Kosakowski, Jakub"]
[WhiteFideId "2224178"]
[BlackFideId "1185080"]
[WhiteElo "2274"]
[BlackElo "2485"]
[Result "0-1"]
[Round "08"]
[TimeControl "180+2"]
[Date "2023.01.31"]
[WhiteClock "0:00:15"]
[BlackClock "0:00:47"]

1. d4 {[%clk 0:03:00]}  Nf6 {[%clk 0:02:59]} 2. c4 {[%clk 0:03:00]}  g6 {[%clk 0:02:58]} 3. Nf3 {[%clk 0:02:59]}  Bg7 {[%clk 0:02:58]} 4. g3 {[%clk 0:03:00]}  O-O {[%clk 0:02:58]} 5. Bg2 {[%clk 0:03:01]}  d6 {[%clk 0:02:58]} 6. O-O {[%clk 0:03:02]}  c5 {[%clk 0:02:58]} 7. Nc3 {[%clk 0:03:02]}  Nc6 {[%clk 0:02:58]} 8. d5 {[%clk 0:03:02]}  Na5 {[%clk 0:02:59]} 9. Nd2 {[%clk 0:03:03]}  e6 {[%clk 0:02:59]} 10. e4 {[%clk 0:02:51]}  Re8 {[%clk 0:02:59]} 11. Qc2 {[%clk 0:02:49]}  a6 {[%clk 0:02:59]} 12. a4 {[%clk 0:02:37]}  Rb8 {[%clk 0:02:57]} 13. b3 {[%clk 0:02:31]}  exd5 {[%clk 0:02:56]} 14. cxd5 {[%clk 0:02:30]}  b5 {[%clk 0:02:53]} 15. axb5 {[%clk 0:02:29]}  axb5 {[%clk 0:02:54]} 16. Bb2 {[%clk 0:02:28]}  Ng4 {[%clk 0:02:51]} 17. Ne2 {[%clk 0:02:12]}  Bxb2 {[%clk 0:02:42]} 18. Qxb2 {[%clk 0:02:12]}  Ne5 {[%clk 0:02:40]} 19. f4 {[%clk 0:02:06]}  Ng4 {[%clk 0:02:29]} 20. Qc3 {[%clk 0:02:02]}  b4 {[%clk 0:02:27]} 21. Qf3 {[%clk 0:02:00]}  f5 {[%clk 0:02:26]} 22. Rae1 {[%clk 0:01:21]}  Ba6 {[%clk 0:01:40]} 23. Bh3 {[%clk 0:01:18]}  h5 {[%clk 0:01:35]} 24. Ra1 {[%clk 0:00:57]}  fxe4 {[%clk 0:01:32]} 25. Nxe4 {[%clk 0:00:56]}  Bxe2 {[%clk 0:01:32]} 26. Qxe2 {[%clk 0:00:54]}  Nxb3 {[%clk 0:01:33]} 27. Bxg4 {[%clk 0:00:47]}  Nd4 {[%clk 0:01:28]} 28. Qd3 {[%clk 0:00:41]}  hxg4 {[%clk 0:01:23]} 29. Ng5 {[%clk 0:00:41]}  Qf6 {[%clk 0:01:09]} 30. Ra7 {[%clk 0:00:41]}  b3 {[%clk 0:01:07]} 31. Rf7 {[%clk 0:00:40]}  Qxf7 {[%clk 0:01:03]} 32. Nxf7 {[%clk 0:00:41]}  Kxf7 {[%clk 0:01:03]} 33. f5 {[%clk 0:00:23]}  Nf3+ {[%clk 0:00:55]} 34. Kg2 {[%clk 0:00:17]}  b2 {[%clk 0:00:51]} 35. fxg6+ {[%clk 0:00:17]}  Kg7 {[%clk 0:00:52]} 36. h3 {[%clk 0:00:16]}  b1=Q {[%clk 0:00:45]} 37. Rxb1 {[%clk 0:00:16]}  Rxb1 {[%clk 0:00:45]} 38. Qxb1 {[%clk 0:00:16]}  Re2+ {[%clk 0:00:46]} 39. Kf1 {[%clk 0:00:16]}  Nd2+ {[%clk 0:00:46]} 40. Kxe2 {[%clk 0:00:16]}  Nxb1 {[%clk 0:00:47]} 41. h4 {[%clk 0:00:14]}  Kxg6 {[%clk 0:00:46]} 42. Kd3 {[%clk 0:00:14]}  Na3 {[%clk 0:00:46]} 43. Kc3 {[%clk 0:00:14]}  Nb5+ {[%clk 0:00:47]} 44. Kc4 {[%clk 0:00:15]}  Nc7 {[%clk 0:00:47]} 0-1


[Site "https://www.chess.com"]

[Event "Titled Tuesday Blitz January 31 Early 2023"]
[White "Vetokhin, Ilia"]
[Black "Florescu, Codrut-Constantin"]
[WhiteFideId "24156078"]
[BlackFideId "1202200"]
[WhiteElo "2305"]
[BlackElo "2259"]
[Result "0-1"]
[Round "08"]
[TimeControl "180+2"]
[Date "2023.01.31"]
[WhiteClock "0:01:18"]
[BlackClock "0:00:13"]

1. b3 {[%clk 0:02:58]}  d5 {[%clk 0:02:59]} 2. Bb2 {[%clk 0:02:59]}  Bf5 {[%clk 0:02:59]} 3. Nf3 {[%clk 0:02:58]}  e6 {[%clk 0:02:58]} 4. g3 {[%clk 0:02:58]}  Nf6 {[%clk 0:02:59]} 5. Bg2 {[%clk 0:02:58]}  Be7 {[%clk 0:02:59]} 6. O-O {[%clk 0:02:59]}  O-O {[%clk 0:02:59]} 7. d3 {[%clk 0:02:59]}  h6 {[%clk 0:02:59]} 8. c4 {[%clk 0:02:58]}  c5 {[%clk 0:02:55]} 9. e3 {[%clk 0:02:55]}  Nc6 {[%clk 0:02:55]} 10. Ne5 {[%clk 0:02:31]}  Nxe5 {[%clk 0:02:40]} 11. Bxe5 {[%clk 0:02:32]}  Qd7 {[%clk 0:02:40]} 12. Nc3 {[%clk 0:02:21]}  Ng4 {[%clk 0:02:25]} 13. Bf4 {[%clk 0:02:01]}  Bf6 {[%clk 0:02:24]} 14. Rc1 {[%clk 0:01:57]}  Bxc3 {[%clk 0:02:06]} 15. Rxc3 {[%clk 0:01:58]}  e5 {[%clk 0:02:06]} 16. e4 {[%clk 0:01:54]}  d4 {[%clk 0:01:36]} 17. Rc2 {[%clk 0:01:54]}  Be6 {[%clk 0:01:24]} 18. Bd2 {[%clk 0:01:48]}  b5 {[%clk 0:01:24]} 19. f4 {[%clk 0:01:46]}  exf4 {[%clk 0:01:17]} 20. gxf4 {[%clk 0:01:46]}  f5 {[%clk 0:01:14]} 21. e5 {[%clk 0:01:46]}  Rac8 {[%clk 0:01:10]} 22. h3 {[%clk 0:01:46]}  Ne3 {[%clk 0:01:09]} 23. Bxe3 {[%clk 0:01:45]}  dxe3 {[%clk 0:01:10]} 24. Qe2 {[%clk 0:01:40]}  Qd4 {[%clk 0:01:07]} 25. Rf3 {[%clk 0:01:40]}  bxc4 {[%clk 0:00:49]} 26. bxc4 {[%clk 0:01:41]}  Rb8 {[%clk 0:00:41]} 27. Qxe3 {[%clk 0:01:40]}  Rb1+ {[%clk 0:00:41]} 28. Kh2 {[%clk 0:01:39]}  Rfb8 {[%clk 0:00:27]} 29. Qxd4 {[%clk 0:01:31]}  cxd4 {[%clk 0:00:27]} 30. Rf1 {[%clk 0:01:32]}  Rxf1 {[%clk 0:00:20]} 31. Bxf1 {[%clk 0:01:32]}  g5 {[%clk 0:00:20]} 32. c5 {[%clk 0:01:32]}  gxf4 {[%clk 0:00:19]} 33. Bg2 {[%clk 0:01:32]}  Kf7 {[%clk 0:00:19]} 34. c6 {[%clk 0:01:32]}  Ke7 {[%clk 0:00:19]} 35. c7 {[%clk 0:01:33]}  Rg8 {[%clk 0:00:16]} 36. Bb7 {[%clk 0:01:30]}  Bc8 {[%clk 0:00:16]} 37. Bd5 {[%clk 0:01:23]}  Re8 {[%clk 0:00:14]} 38. Rf2 {[%clk 0:01:20]}  Kd7 {[%clk 0:00:14]} 39. Rxf4 {[%clk 0:01:20]}  Rxe5 {[%clk 0:00:14]} 40. Rxd4 {[%clk 0:01:20]}  Kxc7 {[%clk 0:00:14]} 41. Kg3 {[%clk 0:01:20]}  Bd7 {[%clk 0:00:14]} 42. Bc4 {[%clk 0:01:20]}  Re3+ {[%clk 0:00:14]} 43. Kh4 {[%clk 0:01:18]}  f4 {[%clk 0:00:13]} 44. Rxf4 {[%clk 0:01:18]}  Rxh3# {[%clk 0:00:13]} 0-1


[Site "https://www.chess.com"]

[Event "Titled Tuesday Blitz January 31 Early 2023"]
[White "Donskov, Anatoly"]
[Black "Kopczynski, Michal"]
[WhiteFideId "24143413"]
[BlackFideId "1124200"]
[WhiteElo "2279"]
[BlackElo "2225"]
[Result "0-1"]
[Round "08"]
[TimeControl "180+2"]
[Date "2023.01.31"]
[WhiteClock "0:00:04"]
[BlackClock "0:00:08"]

1. e4 {[%clk 0:03:00]}  c5 {[%clk 0:02:59]} 2. Nf3 {[%clk 0:03:00]}  d6 {[%clk 0:03:00]} 3. d4 {[%clk 0:03:01]}  cxd4 {[%clk 0:03:01]} 4. Nxd4 {[%clk 0:03:02]}  Nf6 {[%clk 0:03:01]} 5. Nc3 {[%clk 0:03:02]}  g6 {[%clk 0:03:02]} 6. Be3 {[%clk 0:03:02]}  Bg7 {[%clk 0:03:02]} 7. f3 {[%clk 0:03:03]}  O-O {[%clk 0:03:03]} 8. Qd2 {[%clk 0:03:03]}  Nc6 {[%clk 0:03:03]} 9. Bc4 {[%clk 0:03:03]}  Bd7 {[%clk 0:03:03]} 10. O-O-O {[%clk 0:03:03]}  Rc8 {[%clk 0:03:04]} 11. Bb3 {[%clk 0:03:04]}  Nxd4 {[%clk 0:03:04]} 12. Bxd4 {[%clk 0:03:04]}  b5 {[%clk 0:03:05]} 13. Nd5 {[%clk 0:03:01]}  Nxd5 {[%clk 0:03:05]} 14. Bxg7 {[%clk 0:03:01]}  Kxg7 {[%clk 0:03:06]} 15. Bxd5 {[%clk 0:03:01]}  a5 {[%clk 0:02:58]} 16. h4 {[%clk 0:02:46]}  e6 {[%clk 0:02:53]} 17. h5 {[%clk 0:02:46]}  g5 {[%clk 0:02:50]} 18. h6+ {[%clk 0:02:31]}  Kg8 {[%clk 0:02:48]} 19. Qd4 {[%clk 0:00:48]}  f6 {[%clk 0:02:44]} 20. f4 {[%clk 0:00:29]}  exd5 {[%clk 0:02:34]} 21. fxg5 {[%clk 0:00:29]}  Qc7 {[%clk 0:02:18]} 22. Qxd5+ {[%clk 0:00:20]}  Kh8 {[%clk 0:02:16]} 23. Rd2 {[%clk 0:00:15]}  Bc6 {[%clk 0:02:06]} 24. Qd4 {[%clk 0:00:08]}  Qe7 {[%clk 0:01:58]} 25. Rf1 {[%clk 0:00:07]}  Qxe4 {[%clk 0:01:51]} 26. Qxd6 {[%clk 0:00:07]}  Qe5 {[%clk 0:01:17]} 27. Rxf6 {[%clk 0:00:03]}  Qxd6 {[%clk 0:01:11]} 28. Rdxd6 {[%clk 0:00:04]}  Rxf6 {[%clk 0:01:10]} 29. Rxf6 {[%clk 0:00:03]}  Be4 {[%clk 0:01:10]} 30. c3 {[%clk 0:00:03]}  Bxg2 {[%clk 0:01:03]} 31. g6 {[%clk 0:00:03]}  hxg6 {[%clk 0:01:02]} 32. Rxg6 {[%clk 0:00:04]}  Bd5 {[%clk 0:01:01]} 33. Rg5 {[%clk 0:00:04]}  Bc4 {[%clk 0:00:58]} 34. b3 {[%clk 0:00:04]}  Be2 {[%clk 0:00:57]} 35. Kd2 {[%clk 0:00:04]}  Re8 {[%clk 0:00:57]} 36. c4 {[%clk 0:00:04]}  bxc4 {[%clk 0:00:56]} 37. bxc4 {[%clk 0:00:05]}  Bxc4 {[%clk 0:00:56]} 38. Rxa5 {[%clk 0:00:05]}  Kh7 {[%clk 0:00:56]} 39. Kc3 {[%clk 0:00:03]}  Be6 {[%clk 0:00:53]} 40. Ra6 {[%clk 0:00:02]}  Kxh6 {[%clk 0:00:53]} 41. a4 {[%clk 0:00:03]}  Kg5 {[%clk 0:00:53]} 42. Kb4 {[%clk 0:00:03]}  Rb8+ {[%clk 0:00:52]} 43. Kc5 {[%clk 0:00:03]}  Kf5 {[%clk 0:00:52]} 44. Rc6 {[%clk 0:00:02]}  Ra8 {[%clk 0:00:51]} 45. Kb4 {[%clk 0:00:02]}  Bd7 {[%clk 0:00:49]} 46. Rc5+ {[%clk 0:00:02]}  Ke6 {[%clk 0:00:49]} 47. a5 {[%clk 0:00:03]}  Rb8+ {[%clk 0:00:50]} 48. Kc3 {[%clk 0:00:03]}  Kd6 {[%clk 0:00:50]} 49. Rg5 {[%clk 0:00:04]}  Bb5 {[%clk 0:00:50]} 50. Rg6+ {[%clk 0:00:04]}  Kc5 {[%clk 0:00:49]} 51. Rg5+ {[%clk 0:00:04]}  Kc6 {[%clk 0:00:49]} 52. Rg6+ {[%clk 0:00:05]}  Kc7 {[%clk 0:00:49]} 53. Rg7+ {[%clk 0:00:05]}  Kd6 {[%clk 0:00:46]} 54. Rg6+ {[%clk 0:00:06]}  Kd5 {[%clk 0:00:46]} 55. Rg5+ {[%clk 0:00:06]}  Ke4 {[%clk 0:00:46]} 56. Rg4+ {[%clk 0:00:06]}  Kf5 {[%clk 0:00:47]} 57. Rg7 {[%clk 0:00:06]}  Bc6 {[%clk 0:00:43]} 58. Rc7 {[%clk 0:00:06]}  Bd5 {[%clk 0:00:42]} 59. Kd4 {[%clk 0:00:06]}  Ke6 {[%clk 0:00:41]} 60. a6 {[%clk 0:00:06]}  Kd6 {[%clk 0:00:39]} 61. Rg7 {[%clk 0:00:06]}  Rb4+ {[%clk 0:00:38]} 62. Kc3 {[%clk 0:00:06]}  Ra4 {[%clk 0:00:39]} 63. a7 {[%clk 0:00:06]}  Kc5 {[%clk 0:00:39]} 64. Rc7+ {[%clk 0:00:05]}  Bc6 {[%clk 0:00:39]} 65. Rg7 {[%clk 0:00:04]}  Ra3+ {[%clk 0:00:38]} 66. Kb2 {[%clk 0:00:04]}  Rf3 {[%clk 0:00:34]} 67. Rc7 {[%clk 0:00:03]}  Rf2+ {[%clk 0:00:30]} 68. Kc3 {[%clk 0:00:03]}  Rf3+ {[%clk 0:00:30]} 69. Kb2 {[%clk 0:00:03]}  Rf8 {[%clk 0:00:30]} 70. Rg7 {[%clk 0:00:02]}  Kb6 {[%clk 0:00:30]} 71. Kc3 {[%clk 0:00:03]}  Bb7 {[%clk 0:00:30]} 72. Kd4 {[%clk 0:00:02]}  Kxa7 {[%clk 0:00:31]} 73. Kc5 {[%clk 0:00:03]}  Rc8+ {[%clk 0:00:31]} 74. Kd4 {[%clk 0:00:03]}  Kb6 {[%clk 0:00:29]} 75. Rg6+ {[%clk 0:00:03]}  Bc6 {[%clk 0:00:30]} 76. Ke3 {[%clk 0:00:03]}  Re8+ {[%clk 0:00:30]} 77. Kd4 {[%clk 0:00:03]}  Re4+ {[%clk 0:00:30]} 78. Kd3 {[%clk 0:00:04]}  Rh4 {[%clk 0:00:30]} 79. Kc3 {[%clk 0:00:04]}  Kc5 {[%clk 0:00:30]} 80. Rg5+ {[%clk 0:00:05]}  Bd5 {[%clk 0:00:30]} 81. Rg7 {[%clk 0:00:05]}  Rh3+ {[%clk 0:00:31]} 82. Kd2 {[%clk 0:00:05]}  Kd4 {[%clk 0:00:31]} 83. Ra7 {[%clk 0:00:05]}  Rh2+ {[%clk 0:00:31]} 84. Ke1 {[%clk 0:00:05]}  Bc4 {[%clk 0:00:29]} 85. Rd7+ {[%clk 0:00:05]}  Ke3 {[%clk 0:00:29]} 86. Re7+ {[%clk 0:00:05]}  Kd3 {[%clk 0:00:29]} 87. Rd7+ {[%clk 0:00:05]}  Kc3 {[%clk 0:00:30]} 88. Rc7 {[%clk 0:00:04]}  Rg2 {[%clk 0:00:28]} 89. Rc8 {[%clk 0:00:03]}  Kd4 {[%clk 0:00:26]} 90. Rd8+ {[%clk 0:00:03]}  Ke3 {[%clk 0:00:26]} 91. Re8+ {[%clk 0:00:02]}  Kd3 {[%clk 0:00:26]} 92. Rd8+ {[%clk 0:00:02]}  Kc3 {[%clk 0:00:27]} 93. Rc8 {[%clk 0:00:02]}  Kd4 {[%clk 0:00:25]} 94. Rd8+ {[%clk 0:00:02]}  Bd5 {[%clk 0:00:26]} 95. Kd1 {[%clk 0:00:03]}  Kc4 {[%clk 0:00:25]} 96. Ke1 {[%clk 0:00:03]}  Ra2 {[%clk 0:00:24]} 97. Rc8+ {[%clk 0:00:03]}  Kd4 {[%clk 0:00:24]} 98. Rd8 {[%clk 0:00:04]}  Ke4 {[%clk 0:00:23]} 99. Re8+ {[%clk 0:00:04]}  Kd3 {[%clk 0:00:24]} 100. Rd8 {[%clk 0:00:04]}  Kc4 {[%clk 0:00:23]} 101. Rc8+ {[%clk 0:00:04]}  Kd4 {[%clk 0:00:22]} 102. Rd8 {[%clk 0:00:05]}  Rh2 {[%clk 0:00:17]} 103. Rc8 {[%clk 0:00:04]}  Be4 {[%clk 0:00:16]} 104. Rd8+ {[%clk 0:00:05]}  Ke3 {[%clk 0:00:17]} 105. Rf8 {[%clk 0:00:01]}  Re2+ {[%clk 0:00:11]} 106. Kf1 {[%clk 0:00:01]}  Rh2 {[%clk 0:00:10]} 107. Ke1 {[%clk 0:00:01]}  Re2+ {[%clk 0:00:08]} 108. Kf1 {[%clk 0:00:01]}  Ra2 {[%clk 0:00:09]} 109. Kg1 {[%clk 0:00:02]}  Ra1+ {[%clk 0:00:07]} 110. Kh2 {[%clk 0:00:02]}  Rh1+ {[%clk 0:00:07]} 111. Kg3 {[%clk 0:00:03]}  Rg1+ {[%clk 0:00:08]} 112. Kh2 {[%clk 0:00:03]}  Rg2+ {[%clk 0:00:08]} 113. Kh3 {[%clk 0:00:04]}  Rg7 {[%clk 0:00:08]} 114. Kh4 {[%clk 0:00:04]}  Bf3 {[%clk 0:00:09]} 115. Ra8 {[%clk 0:00:04]}  Kf4 {[%clk 0:00:09]} 116. Ra5 {[%clk 0:00:04]}  Rh7+ {[%clk 0:00:08]} 117. Rh5 {[%clk 0:00:04]}  Rxh5# {[%clk 0:00:08]} 0-1


[Site "https://www.chess.com"]